[Event "*** Titled Tuesday Blitz"]
[Site "Chess.com"]
[Date "2020.04.28"]
[Round "9"]
[White "jonaszmb"]
[Black "Leonid_Starozhilov"]
[Result "1-0"]
[WhiteElo "2473"]
[BlackElo "2594"]
[TimeControl "180+1"]
[EndTime "11:48:38 PDT"]
[Termination "jonaszmb won by checkmate"]

1. e4 {[%clk 0:03:00.9]} 1... d6 {[%clk 0:03:00]} 2. d4 {[%clk 0:02:59.7]} 2...
Nf6 {[%clk 0:03:00.3]} 3. Nc3 {[%clk 0:02:58.8]} 3... Nbd7 {[%clk 0:02:37.3]} 4.
Bc4 {[%clk 0:02:51.5]} 4... e5 {[%clk 0:02:27.8]} 5. Nf3 {[%clk 0:02:50.2]} 5...
Be7 {[%clk 0:02:28.1]} 6. O-O {[%clk 0:02:42.2]} 6... O-O {[%clk 0:02:26.1]} 7.
Bb3 {[%clk 0:02:40.1]} 7... a5 {[%clk 0:02:23.5]} 8. Bg5 {[%clk 0:02:27.8]} 8...
c6 {[%clk 0:02:22.2]} 9. dxe5 {[%clk 0:02:18.2]} 9... dxe5 {[%clk 0:02:20.2]}
10. Qe2 {[%clk 0:02:15.5]} 10... Qc7 {[%clk 0:02:18.8]} 11. Rfd1 {[%clk
0:02:11.8]} 11... Nc5 {[%clk 0:02:17.8]} 12. Bxf6 {[%clk 0:02:00.1]} 12... Bxf6
{[%clk 0:02:17.7]} 13. h3 {[%clk 0:01:56.4]} 13... a4 {[%clk 0:02:06]} 14. Bc4
{[%clk 0:01:56.1]} 14... b5 {[%clk 0:02:01.7]} 15. Bd3 {[%clk 0:01:55.8]} 15...
Be6 {[%clk 0:01:58.6]} 16. a3 {[%clk 0:01:55.1]} 16... Rad8 {[%clk 0:01:52.2]}
17. Rd2 {[%clk 0:01:52.5]} 17... Rd7 {[%clk 0:01:40.8]} 18. Rad1 {[%clk
0:01:52.2]} 18... Rfd8 {[%clk 0:01:40.9]} 19. Qe1 {[%clk 0:01:46]} 19... Be7
{[%clk 0:01:34.3]} 20. Bf1 {[%clk 0:01:43.7]} 20... f6 {[%clk 0:01:32.1]} 21.
Rxd7 {[%clk 0:01:39.7]} 21... Rxd7 {[%clk 0:01:32.1]} 22. Rxd7 {[%clk
0:01:39.6]} 22... Qxd7 {[%clk 0:01:32.3]} 23. Qd2 {[%clk 0:01:40.2]} 23... Qc7
{[%clk 0:01:32.4]} 24. Nh4 {[%clk 0:01:20.8]} 24... g6 {[%clk 0:01:30]} 25. Nf3
{[%clk 0:01:17.9]} 25... Kg7 {[%clk 0:01:26.1]} 26. h4 {[%clk 0:01:17.6]} 26...
h5 {[%clk 0:01:19.5]} 27. Ne1 {[%clk 0:01:11.4]} 27... Nd7 {[%clk 0:00:52.8]}
28. Nd3 {[%clk 0:01:10.7]} 28... Bc4 {[%clk 0:00:51.2]} 29. g3 {[%clk
0:01:02.8]} 29... Be6 {[%clk 0:00:41.8]} 30. Kh2 {[%clk 0:00:49.3]} 30... Nb6
{[%clk 0:00:33.5]} 31. Ne1 {[%clk 0:00:38.1]} 31... Bc5 {[%clk 0:00:30.6]} 32.
Ng2 {[%clk 0:00:35.8]} 32... Qd7 {[%clk 0:00:24.2]} 33. Qxd7+ {[%clk 0:00:35.7]}
33... Bxd7 {[%clk 0:00:23]} 34. f3 {[%clk 0:00:29.1]} 34... Be6 {[%clk
0:00:21.9]} 35. Ne1 {[%clk 0:00:28.4]} 35... Bd4 {[%clk 0:00:17.9]} 36. Nd1
{[%clk 0:00:24.8]} 36... Kf7 {[%clk 0:00:14.4]} 37. Nd3 {[%clk 0:00:24.8]} 37...
Bc4 {[%clk 0:00:14.5]} 38. c3 {[%clk 0:00:21.2]} 38... Bxd3 {[%clk 0:00:14.5]}
39. Bxd3 {[%clk 0:00:22.1]} 39... Bc5 {[%clk 0:00:15.2]} 40. Kg2 {[%clk
0:00:20.5]} 40... Ke6 {[%clk 0:00:15.2]} 41. Kf1 {[%clk 0:00:20.8]} 41... Nd7
{[%clk 0:00:15.5]} 42. Ke2 {[%clk 0:00:21]} 42... Bb6 {[%clk 0:00:15.7]} 43. Ne3
{[%clk 0:00:21.3]} 43... Bxe3 {[%clk 0:00:15.2]} 44. Kxe3 {[%clk 0:00:22.2]}
44... g5 {[%clk 0:00:14]} 45. c4 {[%clk 0:00:13.7]} 45... bxc4 {[%clk
0:00:05.9]} 46. Bxc4+ {[%clk 0:00:14.6]} 46... Ke7 {[%clk 0:00:06.6]} 47. Be2
{[%clk 0:00:12.7]} 47... Nf8 {[%clk 0:00:05.7]} 48. hxg5 {[%clk 0:00:07.9]}
48... fxg5 {[%clk 0:00:06.6]} 49. f4 {[%clk 0:00:08.4]} 49... gxf4+ {[%clk
0:00:04.9]} 50. gxf4 {[%clk 0:00:09.3]} 50... h4 {[%clk 0:00:05.5]} 51. f5
{[%clk 0:00:07.6]} 51... Nh7 {[%clk 0:00:02.8]} 52. Bd1 {[%clk 0:00:07.2]} 52...
Nf6 {[%clk 0:00:01.9]} 53. Bxa4 {[%clk 0:00:04.4]} 53... Kd6 {[%clk 0:00:02.8]}
54. Bd1 {[%clk 0:00:04.1]} 54... Kc5 {[%clk 0:00:03.5]} 55. Bf3 {[%clk
0:00:04.2]} 55... Kb6 {[%clk 0:00:03.8]} 56. b4 {[%clk 0:00:04.4]} 56... Kb5
{[%clk 0:00:04.2]} 57. Be2+ {[%clk 0:00:04]} 57... Ka4 {[%clk 0:00:04.6]} 58.
Kf3 {[%clk 0:00:02.8]} 58... Kxa3 {[%clk 0:00:04.8]} 59. b5 {[%clk 0:00:03.2]}
59... cxb5 {[%clk 0:00:05.4]} 60. Bxb5 {[%clk 0:00:04]} 60... Kb4 {[%clk
0:00:06.3]} 61. Bc6 {[%clk 0:00:03.7]} 61... Kc5 {[%clk 0:00:06.8]} 62. Ba8
{[%clk 0:00:04.2]} 62... Kd4 {[%clk 0:00:07.5]} 63. Bb7 {[%clk 0:00:04.5]} 63...
Kd3 {[%clk 0:00:07.6]} 64. Bc6 {[%clk 0:00:04.6]} 64... Kd2 {[%clk 0:00:08]} 65.
Bb7 {[%clk 0:00:04.9]} 65... Ke1 {[%clk 0:00:08.4]} 66. Kg2 {[%clk 0:00:04.7]}
66... Ke2 {[%clk 0:00:08.8]} 67. Kh3 {[%clk 0:00:05.1]} 67... Ke3 {[%clk
0:00:08.6]} 68. Kxh4 {[%clk 0:00:05.5]} 68... Kf4 {[%clk 0:00:09.1]} 69. Bc6
{[%clk 0:00:04.3]} 69... Nh7 {[%clk 0:00:07.5]} 70. Kh5 {[%clk 0:00:04.3]} 70...
Ng5 {[%clk 0:00:05.9]} 71. f6 {[%clk 0:00:03.3]} 71... Ne6 {[%clk 0:00:04.4]}
72. Kg6 {[%clk 0:00:03.6]} 72... Nd4 {[%clk 0:00:04.3]} 73. Bd5 {[%clk
0:00:03.6]} 73... Nf3 {[%clk 0:00:03.5]} 74. f7 {[%clk 0:00:04.2]} 74... Nh4+
{[%clk 0:00:04.4]} 75. Kg7 {[%clk 0:00:03.4]} 75... Ke3 {[%clk 0:00:04.5]} 76.
f8=Q {[%clk 0:00:03.3]} 76... Ng2 {[%clk 0:00:05.4]} 77. Qc5+ {[%clk 0:00:03.4]}
77... Kf4 {[%clk 0:00:05.6]} 78. Qe7 {[%clk 0:00:04.3]} 78... Ne3 {[%clk
0:00:05.7]} 79. Qf6+ {[%clk 0:00:04.8]} 79... Kg3 {[%clk 0:00:06.1]} 80. Qxe5+
{[%clk 0:00:05.3]} 80... Kf3 {[%clk 0:00:06.3]} 81. Qd4 {[%clk 0:00:05.7]} 81...
Ke2 {[%clk 0:00:07.2]} 82. Qxe3+ {[%clk 0:00:05.6]} 82... Kxe3 {[%clk
0:00:07.9]} 83. e5 {[%clk 0:00:06.5]} 83... Kd4 {[%clk 0:00:08.4]} 84. e6 {[%clk
0:00:07.4]} 84... Kc5 {[%clk 0:00:09.1]} 85. e7 {[%clk 0:00:08.3]} 85... Kd6
{[%clk 0:00:10]} 86. e8=Q {[%clk 0:00:08.3]} 86... Kc5 {[%clk 0:00:10.9]} 87.
Bf7 {[%clk 0:00:07.5]} 87... Kd6 {[%clk 0:00:11.8]} 88. Kf6 {[%clk 0:00:08.2]}
88... Kc7 {[%clk 0:00:12.5]} 89. Qe7+ {[%clk 0:00:08]} 89... Kc6 {[%clk
0:00:12.9]} 90. Be8+ {[%clk 0:00:08.2]} 90... Kb6 {[%clk 0:00:13.8]} 91. Ke5
{[%clk 0:00:08.4]} 91... Ka6 {[%clk 0:00:14.7]} 92. Qa3+ {[%clk 0:00:07.9]}
92... Kb6 {[%clk 0:00:15.6]} 93. Bh5 {[%clk 0:00:07.4]} 93... Kc7 {[%clk
0:00:16.1]} 94. Qd6+ {[%clk 0:00:07.3]} 94... Kb7 {[%clk 0:00:16.2]} 95. Kd5
{[%clk 0:00:07.9]} 95... Ka7 {[%clk 0:00:16.6]} 96. Kc5 {[%clk 0:00:08.2]} 96...
Ka8 {[%clk 0:00:17.5]} 97. Qd7 {[%clk 0:00:08]} 97... Kb8 {[%clk 0:00:17.9]} 98.
Kc6 {[%clk 0:00:08.4]} 98... Ka8 {[%clk 0:00:18.8]} 99. Qb7# {[%clk 0:00:08.9]}
1-0

[Event "*** Titled Tuesday Blitz"]
[Site "Chess.com"]
[Date "2020.04.28"]
[Round "9"]
[White "Mikromurks"]
[Black "Tynano"]
[Result "1-0"]
[WhiteElo "2326"]
[BlackElo "2141"]
[TimeControl "180+1"]
[EndTime "11:48:51 PDT"]
[Termination "Mikromurks won by checkmate"]

1. d4 {[%clk 0:03:00.9]} 1... Nf6 {[%clk 0:02:59.6]} 2. Bg5 {[%clk 0:03:00.8]}
2... d5 {[%clk 0:02:58.5]} 3. Bxf6 {[%clk 0:02:59.6]} 3... exf6 {[%clk
0:02:58.2]} 4. e3 {[%clk 0:02:58.3]} 4... c5 {[%clk 0:02:58.5]} 5. c3 {[%clk
0:02:56.9]} 5... Be6 {[%clk 0:02:56.1]} 6. g3 {[%clk 0:02:52.6]} 6... Nc6 {[%clk
0:02:54.8]} 7. Bg2 {[%clk 0:02:52.5]} 7... Bd6 {[%clk 0:02:51.8]} 8. Ne2 {[%clk
0:02:48.8]} 8... O-O {[%clk 0:02:51.2]} 9. dxc5 {[%clk 0:02:46.9]} 9... Bxc5
{[%clk 0:02:51.2]} 10. Nd2 {[%clk 0:02:47.3]} 10... Rc8 {[%clk 0:02:47.6]} 11.
Nb3 {[%clk 0:02:47.2]} 11... Bb6 {[%clk 0:02:47.4]} 12. O-O {[%clk 0:02:46.5]}
12... Ne5 {[%clk 0:02:46]} 13. Nbd4 {[%clk 0:02:36.2]} 13... Bg4 {[%clk
0:02:40.7]} 14. Qc2 {[%clk 0:02:13.6]} 14... Re8 {[%clk 0:02:38]} 15. h3 {[%clk
0:02:11.2]} 15... Bh5 {[%clk 0:02:33.4]} 16. Qb3 {[%clk 0:01:43.8]} 16... Nc4
{[%clk 0:02:26.2]} 17. Nf4 {[%clk 0:01:31.1]} 17... Nd2 {[%clk 0:02:09.8]} 18.
Qc2 {[%clk 0:01:30.6]} 18... Nxf1 {[%clk 0:02:08.6]} 19. Nxh5 {[%clk 0:01:29]}
19... Nxe3 {[%clk 0:02:05.5]} 20. fxe3 {[%clk 0:01:28.3]} 20... Rxe3 {[%clk
0:02:04.4]} 21. Qd2 {[%clk 0:01:20.9]} 21... Qe8 {[%clk 0:01:57.2]} 22. Rf1
{[%clk 0:00:58.1]} 22... Re2 {[%clk 0:01:55.1]} 23. Qd3 {[%clk 0:00:51.1]} 23...
Rxb2 {[%clk 0:01:35.1]} 24. Nf4 {[%clk 0:00:31.2]} 24... Rxa2 {[%clk 0:01:06.5]}
25. Kh1 {[%clk 0:00:31]} 25... Ra3 {[%clk 0:01:04.4]} 26. Nde2 {[%clk
0:00:28.6]} 26... d4 {[%clk 0:00:59.4]} 27. Nxd4 {[%clk 0:00:27.5]} 27... Raxc3
{[%clk 0:00:56.7]} 28. Qd1 {[%clk 0:00:27.2]} 28... Bxd4 {[%clk 0:00:52.1]} 29.
Qxd4 {[%clk 0:00:26.9]} 29... b5 {[%clk 0:00:50.9]} 30. Qxa7 {[%clk 0:00:20.2]}
30... b4 {[%clk 0:00:48.5]} 31. Nd5 {[%clk 0:00:20.3]} 31... Rc2 {[%clk
0:00:47.3]} 32. Ne7+ {[%clk 0:00:20.3]} 32... Kh8 {[%clk 0:00:39.7]} 33. Nxc8
{[%clk 0:00:20.9]} 33... Rxc8 {[%clk 0:00:32.9]} 34. Qb7 {[%clk 0:00:18.5]}
34... Rb8 {[%clk 0:00:30.9]} 35. Qf3 {[%clk 0:00:17.7]} 35... b3 {[%clk
0:00:30.5]} 36. Rb1 {[%clk 0:00:18.3]} 36... b2 {[%clk 0:00:30.4]} 37. Qf2
{[%clk 0:00:18.9]} 37... Qb5 {[%clk 0:00:28.3]} 38. Be4 {[%clk 0:00:18.9]} 38...
Qb6 {[%clk 0:00:23]} 39. Qxb6 {[%clk 0:00:18.5]} 39... Rxb6 {[%clk 0:00:23.9]}
40. Kg2 {[%clk 0:00:19]} 40... g6 {[%clk 0:00:22.4]} 41. Kf3 {[%clk 0:00:19.6]}
41... f5 {[%clk 0:00:22.6]} 42. Bd3 {[%clk 0:00:20.2]} 42... Rb3 {[%clk
0:00:22.2]} 43. Ke3 {[%clk 0:00:20.5]} 43... h5 {[%clk 0:00:21.1]} 44. Kd4
{[%clk 0:00:21]} 44... Kg7 {[%clk 0:00:20.2]} 45. Kc4 {[%clk 0:00:21.6]} 45...
Rb7 {[%clk 0:00:20.3]} 46. Kc3 {[%clk 0:00:21.9]} 46... Kf6 {[%clk 0:00:17.4]}
47. Rxb2 {[%clk 0:00:22.4]} 47... Rc7+ {[%clk 0:00:18]} 48. Kd2 {[%clk
0:00:21.7]} 48... h4 {[%clk 0:00:17.7]} 49. gxh4 {[%clk 0:00:21]} 49... Ke5
{[%clk 0:00:17.3]} 50. Ke3 {[%clk 0:00:20.9]} 50... f4+ {[%clk 0:00:17.2]} 51.
Kf3 {[%clk 0:00:21.2]} 51... Rc5 {[%clk 0:00:15.5]} 52. Re2+ {[%clk 0:00:20.5]}
52... Kd4 {[%clk 0:00:14.6]} 53. Ba6 {[%clk 0:00:19.3]} 53... Rh5 {[%clk
0:00:13.5]} 54. Kg4 {[%clk 0:00:18.6]} 54... f5+ {[%clk 0:00:13.3]} 55. Kxf4
{[%clk 0:00:19]} 55... Rxh4+ {[%clk 0:00:13.8]} 56. Kg3 {[%clk 0:00:19.7]} 56...
Rh8 {[%clk 0:00:11.1]} 57. Bb7 {[%clk 0:00:19.8]} 57... Kd3 {[%clk 0:00:10.9]}
58. Bf3 {[%clk 0:00:20]} 58... f4+ {[%clk 0:00:09]} 59. Kxf4 {[%clk 0:00:18.4]}
59... Rxh3 {[%clk 0:00:09.6]} 60. Rg2 {[%clk 0:00:18.3]} 60... Rh4+ {[%clk
0:00:07.9]} 61. Kg3 {[%clk 0:00:17.7]} 61... Rd4 {[%clk 0:00:07.5]} 62. Rg1
{[%clk 0:00:18.1]} 62... Ke3 {[%clk 0:00:07.7]} 63. Re1+ {[%clk 0:00:18.1]}
63... Kd2 {[%clk 0:00:08.2]} 64. Rd1+ {[%clk 0:00:18.3]} 64... Kc3 {[%clk
0:00:08.6]} 65. Rb1 {[%clk 0:00:18.7]} 65... Kd2 {[%clk 0:00:08]} 66. Rb6 {[%clk
0:00:19.1]} 66... Ke3 {[%clk 0:00:06.2]} 67. Rxg6 {[%clk 0:00:19]} 67... Kd2
{[%clk 0:00:06.6]} 68. Re6 {[%clk 0:00:19]} 68... Rd8 {[%clk 0:00:06.9]} 69. Kf2
{[%clk 0:00:19.2]} 69... Kd3 {[%clk 0:00:07]} 70. Re1 {[%clk 0:00:18.8]} 70...
Kc3 {[%clk 0:00:06.6]} 71. Be4 {[%clk 0:00:17.4]} 71... Rf8+ {[%clk 0:00:06]}
72. Ke3 {[%clk 0:00:17.7]} 72... Re8 {[%clk 0:00:06.2]} 73. Rc1+ {[%clk
0:00:17.8]} 73... Kb4 {[%clk 0:00:06]} 74. Kd4 {[%clk 0:00:16.8]} 74... Rd8+
{[%clk 0:00:06]} 75. Bd5 {[%clk 0:00:16.8]} 75... Kb5 {[%clk 0:00:05.3]} 76.
Rb1+ {[%clk 0:00:16.9]} 76... Ka4 {[%clk 0:00:05.4]} 77. Kc5 {[%clk 0:00:16.3]}
77... Rc8+ {[%clk 0:00:05.4]} 78. Bc6+ {[%clk 0:00:16.5]} 78... Ka3 {[%clk
0:00:05.8]} 79. Rb5 {[%clk 0:00:15.8]} 79... Rh8 {[%clk 0:00:05.7]} 80. Rb6
{[%clk 0:00:15.4]} 80... Ka2 {[%clk 0:00:04.7]} 81. Kd4 {[%clk 0:00:15.5]} 81...
Rh4+ {[%clk 0:00:04.7]} 82. Be4 {[%clk 0:00:14.6]} 82... Rh8 {[%clk 0:00:04.5]}
83. Kd3 {[%clk 0:00:14]} 83... Ka3 {[%clk 0:00:04.8]} 84. Kc3 {[%clk 0:00:14.1]}
84... Rc8+ {[%clk 0:00:04.9]} 85. Kd4 {[%clk 0:00:14]} 85... Rd8+ {[%clk
0:00:05]} 86. Bd5 {[%clk 0:00:14.6]} 86... Ka4 {[%clk 0:00:04.3]} 87. Kc5 {[%clk
0:00:12.1]} 87... Ka3 {[%clk 0:00:04.8]} 88. Rb1 {[%clk 0:00:09.9]} 88... Rc8+
{[%clk 0:00:05]} 89. Kd4 {[%clk 0:00:09.5]} 89... Ka4 {[%clk 0:00:04.7]} 90. Bc4
{[%clk 0:00:08.9]} 90... Ka5 {[%clk 0:00:04.6]} 91. Rb7 {[%clk 0:00:07.3]} 91...
Ka4 {[%clk 0:00:04.8]} 92. Ra7+ {[%clk 0:00:05.8]} 92... Kb4 {[%clk 0:00:05]}
93. Rb7+ {[%clk 0:00:06.7]} 93... Ka4 {[%clk 0:00:05.3]} 94. Kc3 {[%clk
0:00:07.4]} 94... Rc6 {[%clk 0:00:04.3]} 95. Ra7+ {[%clk 0:00:07.1]} 95... Ra6
{[%clk 0:00:02.8]} 96. Rxa6# {[%clk 0:00:07.3]} 1-0

[Event "*** Titled Tuesday Blitz"]
[Site "Chess.com"]
[Date "2020.04.28"]
[Round "9"]
[White "TengisChess"]
[Black "Ekka83"]
[Result "0-1"]
[WhiteElo "2530"]
[BlackElo "2424"]
[TimeControl "180+1"]
[EndTime "11:50:29 PDT"]
[Termination "Ekka83 won by checkmate"]

1. Nf3 {[%clk 0:03:00.9]} 1... d5 {[%clk 0:02:58.6]} 2. g3 {[%clk 0:03:00.7]}
2... Nf6 {[%clk 0:02:58.4]} 3. Bg2 {[%clk 0:03:01.6]} 3... c6 {[%clk 0:02:58.7]}
4. O-O {[%clk 0:03:02.5]} 4... Bg4 {[%clk 0:02:59.2]} 5. c4 {[%clk 0:03:03.4]}
5... Nbd7 {[%clk 0:02:59.1]} 6. cxd5 {[%clk 0:03:03.5]} 6... cxd5 {[%clk
0:02:59.6]} 7. d4 {[%clk 0:03:03.8]} 7... Bxf3 {[%clk 0:02:58.2]} 8. Bxf3 {[%clk
0:03:03.7]} 8... e6 {[%clk 0:02:58.9]} 9. Nc3 {[%clk 0:03:04.2]} 9... Bd6 {[%clk
0:02:57.9]} 10. Nb5 {[%clk 0:03:03.4]} 10... Bb8 {[%clk 0:02:57.7]} 11. a4
{[%clk 0:03:01.9]} 11... a6 {[%clk 0:02:57]} 12. Nc3 {[%clk 0:03:02.1]} 12...
O-O {[%clk 0:02:56.1]} 13. a5 {[%clk 0:03:02.1]} 13... b5 {[%clk 0:02:53.6]} 14.
axb6 {[%clk 0:02:57]} 14... Nxb6 {[%clk 0:02:53.2]} 15. Qb3 {[%clk 0:02:55]}
15... Bd6 {[%clk 0:02:40.6]} 16. Qa2 {[%clk 0:02:52.8]} 16... h5 {[%clk
0:02:33.1]} 17. Bg5 {[%clk 0:02:50.8]} 17... Be7 {[%clk 0:02:30.5]} 18. e3
{[%clk 0:02:47.3]} 18... g6 {[%clk 0:02:22.2]} 19. Bh6 {[%clk 0:02:46.9]} 19...
Re8 {[%clk 0:02:21.3]} 20. Na4 {[%clk 0:02:40]} 20... Nc4 {[%clk 0:02:18.2]} 21.
b3 {[%clk 0:02:38.7]} 21... Nd6 {[%clk 0:02:11.9]} 22. Bf4 {[%clk 0:02:36.2]}
22... Nde4 {[%clk 0:02:09.8]} 23. Be5 {[%clk 0:02:27.8]} 23... h4 {[%clk
0:02:04.3]} 24. Bxf6 {[%clk 0:02:26.5]} 24... Bxf6 {[%clk 0:01:58.7]} 25. Bxe4
{[%clk 0:02:25.5]} 25... dxe4 {[%clk 0:01:59.6]} 26. Nc5 {[%clk 0:02:25.3]}
26... Qd5 {[%clk 0:01:47.5]} 27. b4 {[%clk 0:02:23.9]} 27... Qh5 {[%clk
0:01:39.6]} 28. Nxe4 {[%clk 0:02:17.1]} 28... Bg7 {[%clk 0:01:33.7]} 29. Qa5
{[%clk 0:02:12.7]} 29... Qf3 {[%clk 0:01:31]} 30. Ng5 {[%clk 0:02:11.6]} 30...
Qh5 {[%clk 0:01:20.6]} 31. f3 {[%clk 0:02:07.9]} 31... hxg3 {[%clk 0:01:15.7]}
32. hxg3 {[%clk 0:02:07.3]} 32... Bh6 {[%clk 0:01:15.9]} 33. f4 {[%clk
0:01:52.6]} 33... Qg4 {[%clk 0:01:08.2]} 34. Kf2 {[%clk 0:01:44.4]} 34... e5
{[%clk 0:00:55.5]} 35. Ne4 {[%clk 0:01:36.4]} 35... Qf5 {[%clk 0:00:44]} 36. Nd6
{[%clk 0:01:31.5]} 36... Qc2+ {[%clk 0:00:43.8]} 37. Kg1 {[%clk 0:01:31.8]}
37... exd4 {[%clk 0:00:42.2]} 38. Nxe8 {[%clk 0:01:30.3]} 38... Rxe8 {[%clk
0:00:41.9]} 39. Qa2 {[%clk 0:01:25]} 39... Qe4 {[%clk 0:00:31]} 40. exd4 {[%clk
0:01:18]} 40... Bg7 {[%clk 0:00:30.8]} 41. Qg2 {[%clk 0:01:11.7]} 41... Bxd4+
{[%clk 0:00:29.5]} 42. Kh1 {[%clk 0:01:11.9]} 42... Bxa1 {[%clk 0:00:27]} 43.
Qxe4 {[%clk 0:01:09.2]} 43... Rxe4 {[%clk 0:00:27.9]} 44. Rxa1 {[%clk
0:01:09.1]} 44... Rxb4 {[%clk 0:00:27.8]} 45. Rxa6 {[%clk 0:01:09.2]} 45... Kg7
{[%clk 0:00:26.4]} 46. Kg2 {[%clk 0:01:09.5]} 46... Rb2+ {[%clk 0:00:26.3]} 47.
Kh3 {[%clk 0:01:09.7]} 47... Rc2 {[%clk 0:00:23.6]} 48. Kg4 {[%clk 0:01:09.4]}
48... Rb2 {[%clk 0:00:23.8]} 49. Rd6 {[%clk 0:01:06.5]} 49... Rb3 {[%clk
0:00:23.6]} 50. Kh4 {[%clk 0:01:05.9]} 50... Rc3 {[%clk 0:00:23]} 51. g4 {[%clk
0:01:05.8]} 51... Rf3 {[%clk 0:00:21.7]} 52. Kg5 {[%clk 0:01:05.6]} 52... Rg3
{[%clk 0:00:19]} 53. Ra6 {[%clk 0:01:03.1]} 53... Rb3 {[%clk 0:00:18.9]} 54. Rc6
{[%clk 0:00:59.5]} 54... Ra3 {[%clk 0:00:18.7]} 55. f5 {[%clk 0:00:58.6]} 55...
gxf5 {[%clk 0:00:18]} 56. gxf5 {[%clk 0:00:59.5]} 56... Rg3+ {[%clk 0:00:17.9]}
57. Kf4 {[%clk 0:00:59.8]} 57... Ra3 {[%clk 0:00:18]} 58. Rb6 {[%clk 0:00:58.3]}
58... Ra4+ {[%clk 0:00:18.2]} 59. Kg5 {[%clk 0:00:58.6]} 59... Ra8 {[%clk
0:00:16.7]} 60. Rh6 {[%clk 0:00:54.6]} 60... Rg8 {[%clk 0:00:14.2]} 61. f6+
{[%clk 0:00:51.8]} 61... Kf8+ {[%clk 0:00:14.6]} 62. Kf5 {[%clk 0:00:51.3]}
62... Rg6 {[%clk 0:00:13.1]} 63. Rh8+ {[%clk 0:00:37.3]} 63... Rg8 {[%clk
0:00:13.1]} 64. Rh1 {[%clk 0:00:37.3]} 64... Rg2 {[%clk 0:00:12]} 65. Rh8+
{[%clk 0:00:34.1]} 65... Rg8 {[%clk 0:00:11.5]} 66. Rh1 {[%clk 0:00:22]} 66...
Rg2 {[%clk 0:00:11]} 67. Ke5 {[%clk 0:00:22.2]} 67... Re2+ {[%clk 0:00:10.6]}
68. Kd4 {[%clk 0:00:21.3]} 68... Ke8 {[%clk 0:00:08.9]} 69. Rh8+ {[%clk
0:00:18.3]} 69... Kd7 {[%clk 0:00:09.1]} 70. Rf8 {[%clk 0:00:18.8]} 70... Rd2+
{[%clk 0:00:06.6]} 71. Ke3 {[%clk 0:00:18.3]} 71... Rd6 {[%clk 0:00:06]} 72.
Rxf7+ {[%clk 0:00:16.8]} 72... Ke6 {[%clk 0:00:06.5]} 73. Rf8 {[%clk 0:00:17.2]}
73... Kf5 {[%clk 0:00:06.7]} 74. f7 {[%clk 0:00:16.9]} 74... Kf6 {[%clk
0:00:05.7]} 75. Ke4 {[%clk 0:00:14.4]} 75... Rd7 {[%clk 0:00:05.9]} 76. Rb8
{[%clk 0:00:14.1]} 76... Rxf7 {[%clk 0:00:06.1]} 77. Rb6+ {[%clk 0:00:13.4]}
77... Kg7 {[%clk 0:00:06.6]} 78. Ke5 {[%clk 0:00:14.3]} 78... Re7+ {[%clk
0:00:06.3]} 79. Kf5 {[%clk 0:00:14.6]} 79... Rf7+ {[%clk 0:00:06.8]} 80. Kg5
{[%clk 0:00:15]} 80... Ra7 {[%clk 0:00:07.2]} 81. Rb5 {[%clk 0:00:14.6]} 81...
Ra6 {[%clk 0:00:07.5]} 82. Rb7+ {[%clk 0:00:14.2]} 82... Kf8 {[%clk 0:00:08]}
83. Rc7 {[%clk 0:00:14.6]} 83... Ke8 {[%clk 0:00:08.4]} 84. Rg7 {[%clk 0:00:14]}
84... Kd8 {[%clk 0:00:08.4]} 85. Rh7 {[%clk 0:00:14]} 85... Kc8 {[%clk
0:00:08.7]} 86. Kf5 {[%clk 0:00:14.3]} 86... Kb8 {[%clk 0:00:09]} 87. Ke5 {[%clk
0:00:14.9]} 87... Kc8 {[%clk 0:00:09]} 88. Kd5 {[%clk 0:00:15.2]} 88... Kd8
{[%clk 0:00:09.4]} 89. Rh8+ {[%clk 0:00:15.6]} 89... Ke7 {[%clk 0:00:09.6]} 90.
Rh7+ {[%clk 0:00:16.5]} 90... Kf8 {[%clk 0:00:09.2]} 91. Kc5 {[%clk 0:00:17.4]}
91... Rg6 {[%clk 0:00:08.9]} 92. Rc7 {[%clk 0:00:17.8]} 92... Kg8 {[%clk
0:00:09.1]} 93. Rc8+ {[%clk 0:00:18]} 93... Kf7 {[%clk 0:00:09.3]} 94. Kd5
{[%clk 0:00:18.9]} 94... Kf6 {[%clk 0:00:09.4]} 95. Rf8+ {[%clk 0:00:18.1]}
95... Kg5 {[%clk 0:00:09.6]} 96. Rf1 {[%clk 0:00:19]} 96... Kh6 {[%clk
0:00:09.2]} 97. Ke5 {[%clk 0:00:18.8]} 97... Kg7 {[%clk 0:00:09.5]} 98. Rf2
{[%clk 0:00:18.5]} 98... Rg3 {[%clk 0:00:09.6]} 99. Kf5 {[%clk 0:00:16.7]} 99...
Kg8 {[%clk 0:00:07.5]} 100. Kf6 {[%clk 0:00:16]} 100... Kh7 {[%clk 0:00:07]}
101. Rh2+ {[%clk 0:00:15.6]} 101... Kg8 {[%clk 0:00:06.7]} 102. Rf2 {[%clk
0:00:15.5]} 102... Rg1 {[%clk 0:00:06]} 103. Rf4 {[%clk 0:00:15.2]} 103... Rg3
{[%clk 0:00:06]} 104. Rf5 {[%clk 0:00:15.1]} 104... Rg1 {[%clk 0:00:06.1]} 105.
Rb5 {[%clk 0:00:14.1]} 105... Rf1+ {[%clk 0:00:05.8]} 106. Ke6 {[%clk
0:00:14.2]} 106... Re1+ {[%clk 0:00:06.1]} 107. Kd6 {[%clk 0:00:14.7]} 107...
Rd1+ {[%clk 0:00:06.5]} 108. Kc6 {[%clk 0:00:14]} 108... Rc1+ {[%clk 0:00:07]}
109. Kd7 {[%clk 0:00:13.9]} 109... Kf7 {[%clk 0:00:07.1]} 110. Rf5+ {[%clk
0:00:12.3]} 110... Kg6 {[%clk 0:00:07.6]} 111. Rf2 {[%clk 0:00:13.2]} 111...
Rd1+ {[%clk 0:00:07.8]} 112. Ke6 {[%clk 0:00:13.5]} 112... Kg5 {[%clk
0:00:08.4]} 113. Ke5 {[%clk 0:00:13.2]} 113... Kg4 {[%clk 0:00:08.8]} 114. Ke4
{[%clk 0:00:13.5]} 114... Rd8 {[%clk 0:00:08.4]} 115. Rf8 {[%clk 0:00:14.4]}
115... Rxf8 {[%clk 0:00:07.9]} 116. Ke5 {[%clk 0:00:05.6]} 116... Rf5+ {[%clk
0:00:08]} 117. Ke6 {[%clk 0:00:05.8]} 117... Kg5 {[%clk 0:00:08.9]} 118. Kd6
{[%clk 0:00:06.7]} 118... Rf1 {[%clk 0:00:09.1]} 119. Ke6 {[%clk 0:00:07.6]}
119... Re1+ {[%clk 0:00:09.2]} 120. Kd5 {[%clk 0:00:07.5]} 120... Kf4 {[%clk
0:00:09.1]} 121. Kd4 {[%clk 0:00:08.4]} 121... Rd1+ {[%clk 0:00:09]} 122. Kc3
{[%clk 0:00:08.1]} 122... Ke4 {[%clk 0:00:09]} 123. Kc2 {[%clk 0:00:09]} 123...
Rd8 {[%clk 0:00:09.4]} 124. Kc3 {[%clk 0:00:09]} 124... Rd7 {[%clk 0:00:09.8]}
125. Kc4 {[%clk 0:00:09]} 125... Rc7+ {[%clk 0:00:10]} 126. Kb5 {[%clk
0:00:09.9]} 126... Kd4 {[%clk 0:00:10.3]} 127. Kb6 {[%clk 0:00:10.8]} 127... Rc1
{[%clk 0:00:10.7]} 128. Kb5 {[%clk 0:00:10.9]} 128... Rc2 {[%clk 0:00:10]} 129.
Kb6 {[%clk 0:00:11.1]} 129... Kd5 {[%clk 0:00:10.2]} 130. Kb7 {[%clk 0:00:11.5]}
130... Kd6 {[%clk 0:00:10.7]} 131. Kb6 {[%clk 0:00:12.4]} 131... Rb2+ {[%clk
0:00:10.7]} 132. Ka5 {[%clk 0:00:13.3]} 132... Kc6 {[%clk 0:00:10.8]} 133. Ka4
{[%clk 0:00:13.8]} 133... Rb8 {[%clk 0:00:09.2]} 134. Ka3 {[%clk 0:00:14.7]}
134... Kc5 {[%clk 0:00:09.4]} 135. Ka4 {[%clk 0:00:14.8]} 135... Rb7 {[%clk
0:00:08.9]} 136. Ka3 {[%clk 0:00:14.7]} 136... Kc4 {[%clk 0:00:08.9]} 137. Ka4
{[%clk 0:00:15.6]} 137... Ra7# {[%clk 0:00:08.9]} 0-1